[Event "Late-Titled-Tuesday-Blitz-June-18-2024"]
[Site "Chess.com"]
[Date "2024.06.18"]
[Round "7"]
[White "Dhaydon19"]
[Black "alexrustemov"]
[Result "0-1"]
[WhiteElo "2650"]
[BlackElo "2858"]
[TimeControl "180+1"]
[EndTime "15:19:18 PDT"]
[Termination "alexrustemov won by resignation"]

1. d4 {[%clk 0:03:00.9]} 1... g6 {[%clk 0:02:58.6]} 2. Nf3 {[%clk 0:03:00]} 2...
Bg7 {[%clk 0:02:59]} 3. g3 {[%clk 0:02:59.1]} 3... c5 {[%clk 0:02:59.2]} 4. c3
{[%clk 0:02:58.7]} 4... b6 {[%clk 0:02:57.7]} 5. Bg2 {[%clk 0:02:55.7]} 5... Bb7
{[%clk 0:02:58]} 6. O-O {[%clk 0:02:55]} 6... Nf6 {[%clk 0:02:58.2]} 7. Qc2
{[%clk 0:02:50.3]} 7... O-O {[%clk 0:02:58]} 8. dxc5 {[%clk 0:02:46.6]} 8...
bxc5 {[%clk 0:02:57.3]} 9. Rd1 {[%clk 0:02:46.8]} 9... d5 {[%clk 0:02:41.7]} 10.
Nbd2 {[%clk 0:02:34.7]} 10... Nbd7 {[%clk 0:02:38.7]} 11. Nb3 {[%clk 0:02:31.3]}
11... Qc7 {[%clk 0:02:37.1]} 12. Bg5 {[%clk 0:02:22.4]} 12... Rac8 {[%clk
0:02:30.5]} 13. Rac1 {[%clk 0:02:17.6]} 13... Rfe8 {[%clk 0:02:29.5]} 14. Bh3
{[%clk 0:02:15.6]} 14... e6 {[%clk 0:02:18.1]} 15. Bf4 {[%clk 0:02:10.2]} 15...
Qb6 {[%clk 0:02:15.4]} 16. Ne5 {[%clk 0:02:07]} 16... c4 {[%clk 0:02:05.5]} 17.
Nd4 {[%clk 0:02:03.1]} 17... Nc5 {[%clk 0:01:57.8]} 18. Be3 {[%clk 0:01:54.9]}
18... Qc7 {[%clk 0:01:57]} 19. f4 {[%clk 0:01:40.6]} 19... Nfe4 {[%clk
0:01:52.9]} 20. Ndf3 {[%clk 0:01:40]} 20... f6 {[%clk 0:01:50.6]} 21. Ng4 {[%clk
0:01:38.4]} 21... Nd6 {[%clk 0:01:35.9]} 22. Bd4 {[%clk 0:01:31.5]} 22... Qe7
{[%clk 0:01:31.7]} 23. Ne3 {[%clk 0:01:23.1]} 23... e5 {[%clk 0:01:23.5]} 24.
fxe5 {[%clk 0:01:21.6]} 24... fxe5 {[%clk 0:01:24.4]} 25. Bxe5 {[%clk
0:01:09.9]} 25... Bxe5 {[%clk 0:01:23.4]} 26. Bxc8 {[%clk 0:01:09.7]} 26... Rxc8
{[%clk 0:01:17.7]} 27. Nxd5 {[%clk 0:01:07.5]} 27... Qe6 {[%clk 0:01:16]} 28.
Ng5 {[%clk 0:00:56.9]} 28... Qe8 {[%clk 0:01:07.6]} 29. Nf3 {[%clk 0:00:55]}
29... Bg7 {[%clk 0:01:05.7]} 30. Kg2 {[%clk 0:00:48.8]} 30... Nf5 {[%clk
0:01:05.3]} 31. Qd2 {[%clk 0:00:44.7]} 31... Ne4 {[%clk 0:00:56.5]} 32. Qf4
{[%clk 0:00:41]} 32... Rc5 {[%clk 0:00:43.5]} 33. g4 {[%clk 0:00:17.4]} 33...
Bh6 {[%clk 0:00:28.6]} 34. Qxe4 {[%clk 0:00:16.6]} 34... Qxe4 {[%clk 0:00:27.1]}
35. Nf6+ {[%clk 0:00:16.8]} 35... Kf7 {[%clk 0:00:25.8]} 36. Nxe4 {[%clk
0:00:17.5]} 36... Ne3+ {[%clk 0:00:25.9]} 37. Kf2 {[%clk 0:00:17.9]} 37... Bxe4
{[%clk 0:00:26.4]} 38. Rd7+ {[%clk 0:00:17.1]} 38... Ke6 {[%clk 0:00:25.8]} 39.
Rxh7 {[%clk 0:00:16.6]} 39... Nxg4+ {[%clk 0:00:24.9]} 40. Kg3 {[%clk
0:00:17.3]} 40... Bxc1 {[%clk 0:00:24.9]} 41. Kxg4 {[%clk 0:00:17.7]} 41...
Bxf3+ {[%clk 0:00:24]} 42. exf3 {[%clk 0:00:17.9]} 42... Bxb2 {[%clk 0:00:24.1]}
43. Rc7 {[%clk 0:00:18.6]} 43... Rxc7 {[%clk 0:00:23.1]} 0-1

[Event "Late-Titled-Tuesday-Blitz-June-18-2024"]
[Site "Chess.com"]
[Date "2024.06.18"]
[Round "7"]
[White "talaicito"]
[Black "Inepton_Fermion"]
[Result "1-0"]
[WhiteElo "2318"]
[BlackElo "2396"]
[TimeControl "180+1"]
[EndTime "15:19:19 PDT"]
[Termination "talaicito won by resignation"]

1. d4 {[%clk 0:03:00.9]} 1... c5 {[%clk 0:02:57.6]} 2. d5 {[%clk 0:03:00.5]}
2... e5 {[%clk 0:02:57.9]} 3. Nc3 {[%clk 0:02:56.1]} 3... d6 {[%clk 0:02:57.1]}
4. e4 {[%clk 0:02:55.8]} 4... Be7 {[%clk 0:02:57.4]} 5. f4 {[%clk 0:02:55.3]}
5... exf4 {[%clk 0:02:57]} 6. Bxf4 {[%clk 0:02:54.8]} 6... Bg5 {[%clk
0:02:57.3]} 7. Bb5+ {[%clk 0:02:43.1]} 7... Kf8 {[%clk 0:02:52.5]} 8. Qf3 {[%clk
0:02:28.6]} 8... Bxf4 {[%clk 0:02:46.5]} 9. Qxf4 {[%clk 0:02:28.3]} 9... Ne7
{[%clk 0:02:46.9]} 10. Nf3 {[%clk 0:02:03.8]} 10... Ng6 {[%clk 0:02:47.1]} 11.
Qg3 {[%clk 0:02:01.8]} 11... Qe7 {[%clk 0:02:34.7]} 12. O-O-O {[%clk 0:01:55.6]}
12... a6 {[%clk 0:02:29.8]} 13. Bd3 {[%clk 0:01:52.9]} 13... Nd7 {[%clk
0:02:30.1]} 14. e5 {[%clk 0:01:48.7]} 14... Ngxe5 {[%clk 0:02:27.4]} 15. Rde1
{[%clk 0:01:44.3]} 15... b5 {[%clk 0:02:15.6]} 16. Rhf1 {[%clk 0:01:38.7]} 16...
h6 {[%clk 0:01:49.6]} 17. Bf5 {[%clk 0:01:33.9]} 17... Qd8 {[%clk 0:01:15]} 18.
Bxd7 {[%clk 0:01:15.7]} 18... Bxd7 {[%clk 0:01:15.9]} 19. Nxe5 {[%clk 0:01:13]}
19... dxe5 {[%clk 0:01:16.8]} 20. Rxe5 {[%clk 0:00:55.3]} 20... h5 {[%clk
0:01:11.5]} 21. Ne4 {[%clk 0:00:50.3]} 21... Rh6 {[%clk 0:00:45.6]} 22. h4
{[%clk 0:00:29.1]} 22... Rc8 {[%clk 0:00:41.3]} 23. Rg5 {[%clk 0:00:19.6]} 23...
Rh7 {[%clk 0:00:31.5]} 24. Qf4 {[%clk 0:00:17]} 24... Be8 {[%clk 0:00:28.6]} 25.
Nd6 {[%clk 0:00:15.8]} 25... Rc7 {[%clk 0:00:26.6]} 26. Re1 {[%clk 0:00:12]}
26... Re7 {[%clk 0:00:24]} 27. Rxe7 {[%clk 0:00:08]} 27... Qxe7 {[%clk
0:00:11.7]} 28. Re5 {[%clk 0:00:07.9]} 28... Qxd6 {[%clk 0:00:11.7]} 29. Rxe8+
{[%clk 0:00:08]} 29... Kxe8 {[%clk 0:00:12.6]} 30. Qxd6 {[%clk 0:00:08.5]} 30...
Rh6 {[%clk 0:00:13.1]} 31. Qc7 {[%clk 0:00:08.1]} 1-0

[Event "Late-Titled-Tuesday-Blitz-June-18-2024"]
[Site "Chess.com"]
[Date "2024.06.18"]
[Round "7"]
[White "cristiano78"]
[Black "jcmesafischer"]
[Result "1-0"]
[WhiteElo "2239"]
[BlackElo "2355"]
[TimeControl "180+1"]
[EndTime "15:19:19 PDT"]
[Termination "cristiano78 won by checkmate"]

1. d4 {[%clk 0:03:00]} 1... Nf6 {[%clk 0:02:59.3]} 2. c4 {[%clk 0:02:58.3]} 2...
e6 {[%clk 0:02:58.6]} 3. Nf3 {[%clk 0:02:57.5]} 3... d5 {[%clk 0:02:57.4]} 4.
Nc3 {[%clk 0:02:57.3]} 4... Be7 {[%clk 0:02:56.3]} 5. Bg5 {[%clk 0:02:52]} 5...
Nbd7 {[%clk 0:02:56.5]} 6. e3 {[%clk 0:02:49.6]} 6... c6 {[%clk 0:02:55.8]} 7.
Rc1 {[%clk 0:02:49.4]} 7... dxc4 {[%clk 0:02:55.4]} 8. Bxc4 {[%clk 0:02:48.8]}
8... b5 {[%clk 0:02:56]} 9. Bd3 {[%clk 0:02:48.4]} 9... a6 {[%clk 0:02:56.7]}
10. O-O {[%clk 0:02:40.7]} 10... c5 {[%clk 0:02:55.8]} 11. dxc5 {[%clk
0:02:38.4]} 11... Nxc5 {[%clk 0:02:56.7]} 12. Be2 {[%clk 0:02:35.8]} 12... Bb7
{[%clk 0:02:56.1]} 13. Qxd8+ {[%clk 0:02:26.4]} 13... Rxd8 {[%clk 0:02:57]} 14.
Rfd1 {[%clk 0:02:25.1]} 14... Rxd1+ {[%clk 0:02:45.6]} 15. Nxd1 {[%clk
0:02:22.1]} 15... Nd5 {[%clk 0:02:39.3]} 16. Bxe7 {[%clk 0:02:19.9]} 16... Kxe7
{[%clk 0:02:37.6]} 17. Rxc5 {[%clk 0:02:19.2]} 17... Kd6 {[%clk 0:02:37.8]} 18.
Rc1 {[%clk 0:02:12.6]} 18... e5 {[%clk 0:02:37.5]} 19. Nc3 {[%clk 0:02:11.1]}
19... Nb4 {[%clk 0:02:37.2]} 20. a3 {[%clk 0:02:10.5]} 20... Nc6 {[%clk
0:02:36.6]} 21. Nd2 {[%clk 0:02:04.5]} 21... Rd8 {[%clk 0:02:34.7]} 22. Nde4+
{[%clk 0:02:03.7]} 22... Ke7 {[%clk 0:02:32.7]} 23. Nc5 {[%clk 0:01:59.2]} 23...
Bc8 {[%clk 0:02:33.2]} 24. Bf3 {[%clk 0:01:52.4]} 24... Na5 {[%clk 0:02:30.7]}
25. Nd5+ {[%clk 0:01:47.9]} 25... Ke8 {[%clk 0:02:30.1]} 26. b4 {[%clk
0:01:39.3]} 26... Nc4 {[%clk 0:02:27.6]} 27. a4 {[%clk 0:01:39]} 27... Nd2
{[%clk 0:02:22.2]} 28. Nc7+ {[%clk 0:01:36.5]} 28... Ke7 {[%clk 0:02:21.2]} 29.
axb5 {[%clk 0:01:35.5]} 29... axb5 {[%clk 0:02:18.5]} 30. Nxb5 {[%clk 0:01:35]}
30... Bf5 {[%clk 0:02:15.4]} 31. Nc3 {[%clk 0:01:28.8]} 31... Nxf3+ {[%clk
0:01:59.3]} 32. gxf3 {[%clk 0:01:27.7]} 32... Rd6 {[%clk 0:01:58.1]} 33. N3e4
{[%clk 0:01:25.9]} 33... Rb6 {[%clk 0:01:56.8]} 34. Nd3 {[%clk 0:01:22.4]} 34...
h5 {[%clk 0:01:50.5]} 35. Nxe5 {[%clk 0:01:18.2]} 35... h4 {[%clk 0:01:50.2]}
36. Rc7+ {[%clk 0:00:58.5]} 36... Ke6 {[%clk 0:01:48]} 37. Nxf7 {[%clk
0:00:51.8]} 37... Rxb4 {[%clk 0:01:47.7]} 38. Kg2 {[%clk 0:00:46.8]} 38... Rb1
{[%clk 0:01:34.7]} 39. h3 {[%clk 0:00:31.6]} 39... Rb5 {[%clk 0:01:21.5]} 40.
Nfg5+ {[%clk 0:00:28.1]} 40... Ke5 {[%clk 0:01:17.4]} 41. Rxg7 {[%clk
0:00:22.5]} 41... Bxe4 {[%clk 0:01:14]} 42. fxe4 {[%clk 0:00:20.2]} 42... Kf6
{[%clk 0:01:12.6]} 43. Rg8 {[%clk 0:00:17]} 43... Rxg5+ {[%clk 0:01:07.6]} 44.
Rxg5 {[%clk 0:00:13.7]} 44... Kxg5 {[%clk 0:01:08.5]} 45. f4+ {[%clk 0:00:14]}
45... Kf6 {[%clk 0:01:09.4]} 46. Kf3 {[%clk 0:00:14.3]} 46... Kg6 {[%clk
0:01:10.3]} 47. Kg4 {[%clk 0:00:14.5]} 47... Kh6 {[%clk 0:01:11.2]} 48. Kxh4
{[%clk 0:00:15.1]} 48... Kg7 {[%clk 0:01:12.1]} 49. Kg4 {[%clk 0:00:11.7]} 49...
Kf6 {[%clk 0:01:13]} 50. f5 {[%clk 0:00:12.2]} 50... Kf7 {[%clk 0:01:13.9]} 51.
Kf4 {[%clk 0:00:12.4]} 51... Kg7 {[%clk 0:01:14.8]} 52. e5 {[%clk 0:00:13.2]}
52... Kf7 {[%clk 0:01:15.7]} 53. e6+ {[%clk 0:00:13.6]} 53... Kg7 {[%clk
0:01:16.6]} 54. e4 {[%clk 0:00:14.1]} 54... Kf8 {[%clk 0:01:16.9]} 55. e5 {[%clk
0:00:14.4]} 55... Kg8 {[%clk 0:01:17.8]} 56. f6 {[%clk 0:00:14.9]} 56... Kf8
{[%clk 0:01:18.7]} 57. Kf5 {[%clk 0:00:15.4]} 57... Ke8 {[%clk 0:01:19]} 58. e7
{[%clk 0:00:15.8]} 58... Kf7 {[%clk 0:01:18.8]} 59. h4 {[%clk 0:00:16.5]} 59...
Ke8 {[%clk 0:01:19.7]} 60. Kg6 {[%clk 0:00:16.3]} 60... Kd7 {[%clk 0:01:19.6]}
61. Kf7 {[%clk 0:00:16.4]} 61... Kc6 {[%clk 0:01:20]} 62. e8=Q+ {[%clk
0:00:16.8]} 62... Kd5 {[%clk 0:01:20.9]} 63. Qe6+ {[%clk 0:00:17.3]} 63... Ke4
{[%clk 0:01:21.8]} 64. Qd6 {[%clk 0:00:17.9]} 64... Kf4 {[%clk 0:01:22.7]} 65.
e6+ {[%clk 0:00:18.5]} 65... Kf3 {[%clk 0:01:23.6]} 66. e7 {[%clk 0:00:19.2]}
66... Kg4 {[%clk 0:01:24.5]} 67. e8=Q {[%clk 0:00:19.3]} 67... Kxh4 {[%clk
0:01:25.4]} 68. Kg8 {[%clk 0:00:19.9]} 68... Kg4 {[%clk 0:01:26.3]} 69. f7
{[%clk 0:00:20.5]} 69... Kf3 {[%clk 0:01:27.2]} 70. f8=Q+ {[%clk 0:00:20.4]}
70... Kg4 {[%clk 0:01:28.1]} 71. Qee6+ {[%clk 0:00:20.9]} 71... Kh4 {[%clk
0:01:29]} 72. Qd4+ {[%clk 0:00:20.7]} 72... Kg5 {[%clk 0:01:29.9]} 73. Qff5#
{[%clk 0:00:20.5]} 1-0

[Event "Late-Titled-Tuesday-Blitz-June-18-2024"]
[Site "Chess.com"]
[Date "2024.06.18"]
[Round "7"]
[White "divudis17"]
[Black "pinelone"]
[Result "0-1"]
[WhiteElo "2332"]
[BlackElo "2458"]
[TimeControl "180+1"]
[EndTime "15:19:24 PDT"]
[Termination "pinelone won by resignation"]

1. Nf3 {[%clk 0:03:00.9]} 1... c5 {[%clk 0:02:59.6]} 2. c4 {[%clk 0:03:00.2]}
2... g6 {[%clk 0:03:00.1]} 3. d4 {[%clk 0:02:50.6]} 3... cxd4 {[%clk 0:02:59.7]}
4. Nxd4 {[%clk 0:02:50.7]} 4... Nc6 {[%clk 0:02:58.6]} 5. e4 {[%clk 0:02:48.4]}
5... Nf6 {[%clk 0:02:58.4]} 6. Nc3 {[%clk 0:02:47.2]} 6... d6 {[%clk 0:02:58.9]}
7. Be2 {[%clk 0:02:40.7]} 7... Nxd4 {[%clk 0:02:58.2]} 8. Qxd4 {[%clk
0:02:40.1]} 8... Bg7 {[%clk 0:02:58.9]} 9. Be3 {[%clk 0:02:25]} 9... O-O {[%clk
0:02:58.6]} 10. Qd2 {[%clk 0:02:25.5]} 10... a5 {[%clk 0:02:58.6]} 11. O-O
{[%clk 0:02:24]} 11... a4 {[%clk 0:02:59]} 12. f3 {[%clk 0:02:22]} 12... Qa5
{[%clk 0:02:58.3]} 13. Rac1 {[%clk 0:02:16.1]} 13... Bd7 {[%clk 0:02:47.6]} 14.
Rfd1 {[%clk 0:02:12.8]} 14... Rfc8 {[%clk 0:02:44.4]} 15. Bd4 {[%clk 0:02:10.3]}
15... Bc6 {[%clk 0:02:34.7]} 16. Bxf6 {[%clk 0:01:45.5]} 16... Bxf6 {[%clk
0:02:33.8]} 17. Nd5 {[%clk 0:01:45.7]} 17... Bxd5 {[%clk 0:02:24.5]} 18. exd5
{[%clk 0:01:40.2]} 18... Qxd2 {[%clk 0:02:22]} 19. Rxd2 {[%clk 0:01:40.2]} 19...
Bg5 {[%clk 0:02:21.1]} 20. Rcd1 {[%clk 0:01:37]} 20... Bxd2 {[%clk 0:02:20.9]}
21. Rxd2 {[%clk 0:01:37.9]} 21... Ra5 {[%clk 0:02:06.2]} 22. Kf2 {[%clk
0:01:36.5]} 22... h5 {[%clk 0:01:30.3]} 23. h4 {[%clk 0:01:30.3]} 23... Kg7
{[%clk 0:01:29.4]} 24. Ke3 {[%clk 0:01:29]} 24... Kf6 {[%clk 0:01:29.6]} 25. Kd4
{[%clk 0:01:28.2]} 25... e5+ {[%clk 0:01:21.3]} 26. Ke3 {[%clk 0:01:27.9]} 26...
Ke7 {[%clk 0:01:13.4]} 27. Rd1 {[%clk 0:01:15.3]} 27... f5 {[%clk 0:01:12.9]}
28. Rg1 {[%clk 0:01:14.7]} 28... Kf6 {[%clk 0:01:02.1]} 29. Bd3 {[%clk
0:01:10.3]} 29... Rac5 {[%clk 0:00:58.3]} 30. g4 {[%clk 0:01:02.9]} 30... hxg4
{[%clk 0:00:55.2]} 31. fxg4 {[%clk 0:01:02.9]} 31... f4+ {[%clk 0:00:49.6]} 32.
Kf3 {[%clk 0:01:00.4]} 32... Rxc4 {[%clk 0:00:45.4]} 33. Bxc4 {[%clk 0:00:59.7]}
33... Rxc4 {[%clk 0:00:45.6]} 34. h5 {[%clk 0:00:54]} 34... gxh5 {[%clk
0:00:38.7]} 35. gxh5 {[%clk 0:00:53.7]} 35... Kf5 {[%clk 0:00:34.4]} 36. Rg7
{[%clk 0:00:35.3]} 36... e4+ {[%clk 0:00:33.1]} 37. Ke2 {[%clk 0:00:35.9]} 37...
Rc2+ {[%clk 0:00:22.7]} 38. Kd1 {[%clk 0:00:32.2]} 38... Rh2 {[%clk 0:00:22.6]}
39. Rh7 {[%clk 0:00:21.6]} 39... f3 {[%clk 0:00:19.9]} 40. h6 {[%clk 0:00:21.4]}
40... e3 {[%clk 0:00:18.3]} 41. Rf7+ {[%clk 0:00:20.2]} 41... Ke4 {[%clk
0:00:18.5]} 42. h7 {[%clk 0:00:17.5]} 42... Kd3 {[%clk 0:00:14.8]} 0-1

[Event "Late-Titled-Tuesday-Blitz-June-18-2024"]
[Site "Chess.com"]
[Date "2024.06.18"]
[Round "7"]
[White "rychessmaster1"]
[Black "rasmussvane"]
[Result "0-1"]
[WhiteElo "2754"]
[BlackElo "2984"]
[TimeControl "180+1"]
[EndTime "15:19:25 PDT"]
[Termination "rasmussvane won by resignation"]

1. Nf3 {[%clk 0:03:00.9]} 1... d5 {[%clk 0:02:59.3]} 2. d4 {[%clk 0:02:59.5]}
2... Nf6 {[%clk 0:02:58.7]} 3. c4 {[%clk 0:02:59.8]} 3... e6 {[%clk 0:02:57.4]}
4. Nc3 {[%clk 0:02:59.8]} 4... a6 {[%clk 0:02:57.3]} 5. cxd5 {[%clk 0:02:59.9]}
5... exd5 {[%clk 0:02:58.2]} 6. Bg5 {[%clk 0:02:58.5]} 6... Be6 {[%clk
0:02:58.1]} 7. Qb3 {[%clk 0:02:57.9]} 7... Nbd7 {[%clk 0:02:56.9]} 8. e3 {[%clk
0:02:56.5]} 8... b5 {[%clk 0:02:55.1]} 9. Bd3 {[%clk 0:02:53]} 9... c5 {[%clk
0:02:55.1]} 10. dxc5 {[%clk 0:02:52.9]} 10... d4 {[%clk 0:02:45.7]} 11. Bxf6
{[%clk 0:02:48.9]} 11... gxf6 {[%clk 0:01:51.2]} 12. Qc2 {[%clk 0:02:39.4]}
12... dxc3 {[%clk 0:01:50.2]} 13. Be4 {[%clk 0:02:36.3]} 13... cxb2 {[%clk
0:01:37.4]} 14. Rd1 {[%clk 0:02:34.6]} 14... Qa5+ {[%clk 0:01:31.3]} 15. Kf1
{[%clk 0:02:31.1]} 15... Rc8 {[%clk 0:01:30.3]} 16. c6 {[%clk 0:02:29.4]} 16...
Nc5 {[%clk 0:01:24.8]} 17. Nd4 {[%clk 0:01:48.1]} 17... Bc4+ {[%clk 0:01:15.6]}
18. Kg1 {[%clk 0:01:47.5]} 18... Qa4 {[%clk 0:01:13.1]} 19. Rb1 {[%clk
0:01:22.9]} 19... Qxc2 {[%clk 0:01:08.8]} 20. Bxc2 {[%clk 0:01:23.8]} 20... Bd6
{[%clk 0:01:04.9]} 21. Rxb2 {[%clk 0:01:22.2]} 21... Be5 {[%clk 0:01:04.9]} 22.
h4 {[%clk 0:01:19.7]} 22... Bxd4 {[%clk 0:01:04]} 23. exd4 {[%clk 0:01:20.6]}
23... Ne6 {[%clk 0:01:04.4]} 24. Be4 {[%clk 0:01:18.7]} 24... Nxd4 {[%clk
0:01:01.9]} 25. Rh3 {[%clk 0:01:06.5]} 25... Nxc6 {[%clk 0:00:58]} 26. Rd2
{[%clk 0:01:04.2]} 26... Ke7 {[%clk 0:00:36.4]} 27. Re3 {[%clk 0:01:00.4]} 27...
Be6 {[%clk 0:00:36.4]} 28. f4 {[%clk 0:01:00]} 28... f5 {[%clk 0:00:30.8]} 29.
Bxf5 {[%clk 0:00:58.4]} 29... Rhd8 {[%clk 0:00:26.4]} 30. Bxe6 {[%clk
0:00:53.7]} 30... fxe6 {[%clk 0:00:25.3]} 31. Rf2 {[%clk 0:00:51.8]} 31... Kf6
{[%clk 0:00:23.9]} 32. g4 {[%clk 0:00:51.5]} 32... Rd1+ {[%clk 0:00:21.1]} 33.
Kh2 {[%clk 0:00:50.5]} 33... Nd4 {[%clk 0:00:20.6]} 34. h5 {[%clk 0:00:42.3]}
34... h6 {[%clk 0:00:20]} 35. Re4 {[%clk 0:00:36]} 35... Rc2 {[%clk 0:00:17.6]}
36. Rxc2 {[%clk 0:00:33.9]} 36... Nxc2 {[%clk 0:00:18.5]} 37. a4 {[%clk
0:00:30.3]} 37... Rd4 {[%clk 0:00:16.3]} 38. g5+ {[%clk 0:00:28.7]} 38... hxg5
{[%clk 0:00:14.5]} 39. fxg5+ {[%clk 0:00:29.6]} 39... Kxg5 {[%clk 0:00:13.1]}
40. Rxe6 {[%clk 0:00:30.3]} 40... bxa4 {[%clk 0:00:09.6]} 41. Rxa6 {[%clk
0:00:30]} 41... Kxh5 {[%clk 0:00:09.1]} 42. Kg3 {[%clk 0:00:29.7]} 42... a3
{[%clk 0:00:08.9]} 43. Kf3 {[%clk 0:00:28.1]} 43... Kg5 {[%clk 0:00:08.8]} 44.
Ke2 {[%clk 0:00:26.9]} 44... Kf5 {[%clk 0:00:08.7]} 45. Rc6 {[%clk 0:00:26.3]}
45... a2 {[%clk 0:00:07.7]} 0-1

[Event "Late-Titled-Tuesday-Blitz-June-18-2024"]
[Site "Chess.com"]
[Date "2024.06.18"]
[Round "7"]
[White "SRob2003"]
[Black "Romkachess"]
[Result "1-0"]
[WhiteElo "2699"]
[BlackElo "2497"]
[TimeControl "180+1"]
[EndTime "15:19:26 PDT"]
[Termination "SRob2003 won by resignation"]

1. e3 {[%clk 0:03:00.9]} 1... e5 {[%clk 0:02:51.1]} 2. d3 {[%clk 0:03:01.8]}
2... d5 {[%clk 0:02:51.1]} 3. Ne2 {[%clk 0:03:02.7]} 3... Nf6 {[%clk 0:02:51.3]}
4. Nd2 {[%clk 0:03:03]} 4... Nc6 {[%clk 0:02:51.2]} 5. Ng3 {[%clk 0:03:03]} 5...
Bd6 {[%clk 0:02:50.8]} 6. Nb3 {[%clk 0:03:03]} 6... h5 {[%clk 0:02:42]} 7. Be2
{[%clk 0:02:58.2]} 7... h4 {[%clk 0:02:41.8]} 8. Nh5 {[%clk 0:02:57.8]} 8...
Nxh5 {[%clk 0:02:13.1]} 9. Bxh5 {[%clk 0:02:58.7]} 9... Qg5 {[%clk 0:02:03.4]}
10. Bf3 {[%clk 0:02:57.7]} 10... h3 {[%clk 0:01:18]} 11. g3 {[%clk 0:02:55.9]}
11... Ne7 {[%clk 0:00:37.5]} 12. e4 {[%clk 0:02:42]} 12... Qg6 {[%clk
0:00:37.7]} 13. exd5 {[%clk 0:02:41.7]} 13... Bf5 {[%clk 0:00:37.8]} 14. O-O
{[%clk 0:02:35.3]} 14... O-O-O {[%clk 0:00:37]} 15. Be3 {[%clk 0:02:34]} 15...
e4 {[%clk 0:00:36.6]} 16. dxe4 {[%clk 0:02:27.2]} 16... Bxe4 {[%clk 0:00:36.7]}
17. c4 {[%clk 0:02:27.6]} 17... Bxf3 {[%clk 0:00:25.3]} 18. Qxf3 {[%clk
0:02:26.4]} 18... Nf5 {[%clk 0:00:26.2]} 19. Kh1 {[%clk 0:02:02.7]} 19... a6
{[%clk 0:00:15.9]} 20. c5 {[%clk 0:02:00.3]} 20... Be5 {[%clk 0:00:15.7]} 21.
Rfd1 {[%clk 0:01:46.2]} 21... Rde8 {[%clk 0:00:15.3]} 22. d6 {[%clk 0:01:44.8]}
22... cxd6 {[%clk 0:00:14.5]} 23. c6 {[%clk 0:01:44.8]} 23... b5 {[%clk
0:00:13.5]} 24. c7 {[%clk 0:01:44.3]} 24... Nxe3 {[%clk 0:00:12.3]} 25. fxe3
{[%clk 0:01:15]} 25... Kxc7 {[%clk 0:00:08.2]} 26. Rac1+ {[%clk 0:01:13.7]}
26... Kd7 {[%clk 0:00:08.8]} 27. Qb7+ {[%clk 0:00:43.8]} 27... Ke6 {[%clk
0:00:09]} 28. Rc7 {[%clk 0:00:27.1]} 28... Rhf8 {[%clk 0:00:06]} 29. Rf1 {[%clk
0:00:15.9]} 29... Qd3 {[%clk 0:00:03.1]} 30. Qf3 {[%clk 0:00:09.2]} 30... f5
{[%clk 0:00:02.3]} 31. Rc6 {[%clk 0:00:08]} 31... Qe4 {[%clk 0:00:02.5]} 32.
Nc5+ {[%clk 0:00:07.6]} 32... Kf6 {[%clk 0:00:02]} 33. Nxe4+ {[%clk 0:00:07.9]}
33... Kg6 {[%clk 0:00:02.6]} 34. Nd2 {[%clk 0:00:07.6]} 34... Bxg3 {[%clk
0:00:01.9]} 35. Qxg3+ {[%clk 0:00:07.4]} 1-0

[Event "Late-Titled-Tuesday-Blitz-June-18-2024"]
[Site "Chess.com"]
[Date "2024.06.18"]
[Round "7"]
[White "Gyulamiryan-koryun"]
[Black "shirovin"]
[Result "0-1"]
[WhiteElo "1659"]
[BlackElo "2097"]
[TimeControl "180+1"]
[EndTime "15:19:26 PDT"]
[Termination "shirovin won on time"]

1. e4 {[%clk 0:03:00.9]} 1... c5 {[%clk 0:02:58.3]} 2. Nf3 {[%clk 0:02:59.2]}
2... d6 {[%clk 0:02:58.8]} 3. d4 {[%clk 0:02:59.1]} 3... cxd4 {[%clk 0:02:59.4]}
4. Nxd4 {[%clk 0:02:58.8]} 4... Nf6 {[%clk 0:03:00.1]} 5. Nc3 {[%clk 0:02:57.7]}
5... a6 {[%clk 0:03:00.7]} 6. f3 {[%clk 0:02:51]} 6... e5 {[%clk 0:02:59.3]} 7.
Nb3 {[%clk 0:02:50.2]} 7... Be6 {[%clk 0:02:59.8]} 8. g4 {[%clk 0:02:47.4]} 8...
Be7 {[%clk 0:02:55.9]} 9. h4 {[%clk 0:02:46.1]} 9... Nbd7 {[%clk 0:02:54.4]} 10.
h5 {[%clk 0:02:45.7]} 10... h6 {[%clk 0:02:39.8]} 11. Be3 {[%clk 0:02:24.7]}
11... b5 {[%clk 0:02:39]} 12. Qd2 {[%clk 0:02:04.9]} 12... b4 {[%clk 0:02:37.5]}
13. Ne2 {[%clk 0:02:02.4]} 13... d5 {[%clk 0:02:25]} 14. O-O-O {[%clk
0:01:48.5]} 14... d4 {[%clk 0:02:18.1]} 15. Nexd4 {[%clk 0:01:40.3]} 15... exd4
{[%clk 0:02:16.8]} 16. Nxd4 {[%clk 0:01:40.5]} 16... Qa5 {[%clk 0:01:53.9]} 17.
Nxe6 {[%clk 0:01:21.5]} 17... fxe6 {[%clk 0:01:50]} 18. Bc4 {[%clk 0:01:09]}
18... O-O {[%clk 0:00:56.6]} 19. Bxe6+ {[%clk 0:01:06.4]} 19... Kh8 {[%clk
0:00:55.7]} 20. Bb3 {[%clk 0:00:58.3]} 20... Nc5 {[%clk 0:00:48.3]} 21. Bxc5
{[%clk 0:00:52.1]} 21... Qxc5 {[%clk 0:00:46.1]} 22. Qd4 {[%clk 0:00:34.2]}
22... Qg5+ {[%clk 0:00:37.7]} 23. Qd2 {[%clk 0:00:32.2]} 23... Rad8 {[%clk
0:00:25.6]} 24. Qxg5 {[%clk 0:00:30]} 24... hxg5 {[%clk 0:00:25.8]} 25. e5
{[%clk 0:00:18.8]} 25... Ne8 {[%clk 0:00:18.7]} 26. Bd5 {[%clk 0:00:11.4]} 26...
Nc7 {[%clk 0:00:15.2]} 27. Be4 {[%clk 0:00:07.9]} 27... Rxd1+ {[%clk 0:00:13.1]}
28. Rxd1 {[%clk 0:00:06.9]} 28... Rd8 {[%clk 0:00:13.6]} 29. Rxd8+ {[%clk
0:00:04.2]} 29... Bxd8 {[%clk 0:00:13.6]} 30. Kd2 {[%clk 0:00:02.9]} 30... Ne6
{[%clk 0:00:13.3]} 31. Kd3 {[%clk 0:00:01.4]} 31... Bb6 {[%clk 0:00:13.6]} 32.
Kc4 {[%clk 0:00:01]} 32... Bc7 {[%clk 0:00:10.2]} 0-1